[Event "SVK ECo-C Extraliga 2018-19"]
[Site "Slovakia"]
[Date "2019.04.12"]
[Round "9.3"]
[White "Cibickova, Zuzana"]
[Black "Polak, Tomas"]
[Result "1/2-1/2"]
[ECO "B11"]
[WhiteElo "2239"]
[BlackElo "2528"]
[Annotator "ChessBase"]
[PlyCount "109"]
[EventDate "2018.11.10"]
[EventType "team-tourn"]
[EventCountry "SVK"]
[SourceTitle "playchess.com"]
[Source "ChessBase"]
[SourceQuality "1"]
[WhiteTeam "Komarno"]
[BlackTeam "Podhajska"]
[TimeControl "40/5400+30:1800+30"]

1. e4 {[%emt 0:00:00]} c6 {[%emt 0:00:00]} 2. Nc3 {[%emt 0:00:08]} d5 {[%emt 0:00:09]} 3. Nf3 {[%emt 0:00:09]} Bg4 {[%emt 0:00:24]} 4. h3 {[%emt 0:00:07]} Bh5 {[%emt 0:01:15]} 5. exd5 {[%emt 0:01:15]} cxd5 {[%emt 0:00:07]} 6. Bb5+ {[%emt 0:00:06]} Nc6 {[%emt 0:00:09]} 7. g4 {[%emt 0:06:44]} Bg6 {[%emt 0:00:22]} 8. Ne5 {[%emt 0:00:22]} Rc8 {[%emt 0:00:21]} 9. d4 {[%emt 0:00:31]} e6 {[%emt 0:01:18]} 10. h4 {[%emt 0:00:41]} f6 {[%emt 0:00:36]} 11. Nxg6 {[%emt 0:03:32]} hxg6 {[%emt 0:00:07]} 12. Qd3 {[%emt 0:04:59]} Kf7 {[%emt 0:00:30]} 13. Bxc6 {[%emt 0:09:13]} Rxc6 {[%emt 0:02:36]} 14. Ne2 {[%emt 0:00:07]} Qa5+ {[%emt 0:07:19]} 15. Bd2 {[%emt 0:20:00]} Qa6 {[%emt 0:01:36]} 16. Qxa6 {[%emt 0:05:47]} Rxa6 {[%emt 0:00:23]} 17. Bf4 {[%emt 0:03:32]} Ne7 {[%emt 0:11:56]} 18. Kd2 {[%emt 0:02:11]} Nc6 {[%emt 0:01:29]} 19. Bg3 {[%emt 0:04:11]} Be7 {[%emt 0:01:37]} 20. f4 {[%emt 0:08:30]} b5 {[%emt 0:07:54]} 21. Bf2 {[%emt 0:05:45]} Rc8 {[%emt 0:18:31]} 22. Nc1 {[%emt 0:04:52]} Ra4 {[%emt 0:06:46]} 23. b3 {[%emt 0:03:59]} Ra3 {[%emt 0:05:16]} 24. Rh3 {[%emt 0:04:02]} a5 {[%emt 0:08:00]} 25. Nd3 {[%emt 0:05:56]} a4 {[%emt 0:01:24]} 26. Nc5 {[%emt 0:01:14]} Ra8 {[%emt 0:03:31]} 27. Rb1 {[%emt 0:05:00]} Rxa2 {[%emt 0:07:24]} 28. b4 {[%emt 0:00:01]} Bd6 {[%emt 0:05:47]} 29. Be3 {[%emt 0:00:55]} Ra3 {[%emt 0:01:29]} 30. Nd3 {[%emt 0:00:13]} Rc8 {[%emt 0:00:53]} 31. h5 {[%emt 0:00:30]} Rxd3+ {[%emt 0:03:45]} 32. cxd3 {[%emt 0:00:30]} Nxb4 {[%emt 0:00:23]} 33. h6 {[%emt 0:00:49]} gxh6 {[%emt 0:00:24]} 34. Rxh6 {[%emt 0:00:04]} Rc2+ {[%emt 0:01:55]} 35. Kd1 {[%emt 0:00:00]} Rg2 {[%emt 0:01:01]} 36. Rh7+ {[%emt 0:00:03]} Kg8 {[%emt 0:00:06]} 37. Rd7 {[%emt 0:00:20]} Bf8 {[%emt 0:00:19]} 38. Rd8 {[%emt 0:01:11]} Na2 {[%emt 0:00:26]} 39. Bd2 {[%emt 0:00:20]} Rxd2+ {[%emt 0:01:24]} 40. Kxd2 {[%emt 0:00:02]} b4 {[%emt 0:00:05]} 41. Ra8 {[%emt 0:05:33]} a3 {[%emt 0:08:15]} 42. Kc2 {[%emt 0:00:11]} Kg7 {[%emt 0:01:31]} 43. Re1 {[%emt 0:00:37]} Nc3 {[%emt 0:01:08]} 44. Rxe6 {[%emt 0:16:24]} Nb5 {[%emt 0:00:35]} 45. Rb6 {[%emt 0:02:48]} Nxd4+ {[%emt 0:02:12]} 46. Kb1 {[%emt 0:00:02]} Kf7 {[%emt 0:11:10]} 47. Rxf8+ {[%emt 0:01:58]} Kxf8 {[%emt 0:00:05]} 48. Rxb4 {[%emt 0:00:07]} Ne2 {[%emt 0:03:16]} 49. Ka2 {[%emt 0:01:01]} Nc1+ {[%emt 0:00:46]} 50. Kxa3 {[%emt 0:00:04]} Nxd3 {[%emt 0:00:04]} 51. Rd4 {[%emt 0:00:09]} Ne1 {[%emt 0:05:13]} 52. Rxd5 {[%emt 0:02:16]} Nc2+ {[%emt 0:00:14]} 53. Kb3 {[%emt 0:00:12]} Ne3 {[%emt 0:00:04]} 54. Rd8+ {[%emt 0:00:07]} Ke7 {[%emt 0:00:28]} 55. Rd4 {[%emt 0:03:36]} 1/2-1/2

[Event "SVK ECo-C Extraliga 2018-19"]
[Site "Slovakia"]
[Date "2019.04.12"]
[Round "9.4"]
[White "Bulski, Krzysztof"]
[Black "Motuz, Karol"]
[Result "1/2-1/2"]
[ECO "A13"]
[WhiteElo "2538"]
[BlackElo "2375"]
[Annotator "ChessBase"]
[PlyCount "39"]
[EventDate "2018.11.10"]
[EventType "team-tourn"]
[EventCountry "SVK"]
[SourceTitle "playchess.com"]
[Source "ChessBase"]
[SourceQuality "1"]
[WhiteTeam "Dunajov"]
[BlackTeam "Dubnica"]
[TimeControl "40/5400+30:1800+30"]

1. c4 {[%emt 0:00:00]} e6 {[%emt 0:00:15]} 2. g3 {[%emt 0:00:40]} Nf6 {[%emt 0:00:26]} 3. Bg2 {[%emt 0:00:08]} d5 {[%emt 0:00:10]} 4. Nf3 {[%emt 0:00:12]} dxc4 {[%emt 0:00:57]} 5. Qa4+ {[%emt 0:03:25]} Nbd7 {[%emt 0:00:50]} 6. Qxc4 {[%emt 0:03:34]} a6 {[%emt 0:00:45]} 7. Qc2 {[%emt 0:02:19]} c5 {[%emt 0:05:52]} 8. O-O {[%emt 0:00:10]} b5 {[%emt 0:00:59]} 9. a4 {[%emt 0:03:38]} Bb7 {[%emt 0:01:30]} 10. axb5 {[%emt 0:16:28]} axb5 {[%emt 0:00:09]} 11. Rxa8 {[%emt 0:00:03]} Qxa8 {[%emt 0:01:05]} 12. Nc3 {[%emt 0:01:05]} b4 {[%emt 0:11:06]} 13. Nd1 {[%emt 0:00:30]} Be7 {[%emt 0:00:46]} 14. Ne3 {[%emt 0:05:54]} Nb6 {[%emt 0:10:47]} 15. b3 {[%emt 0:01:51]} Nfd5 {[%emt 0:05:25]} 16. Bb2 {[%emt 0:03:52]} Nxe3 {[%emt 0:02:45]} 17. fxe3 {[%emt 0:00:06]} O-O {[%emt 0:00:55]} 18. Ra1 {[%emt 0:02:12]} Qb8 {[%emt 0:03:59]} 19. Ra5 {[%emt 0:05:39]} Rd8 {[%emt 0:09:43]} 20. Kf2 {[%emt 0:23:48]} 1/2-1/2

[Event "SVK ECo-C Extraliga 2018-19"]
[Site "Slovakia"]
[Date "2019.04.12"]
[Round "9.4"]
[White "Kriebel, Tadeas"]
[Black "Druska, Juraj"]
[Result "1/2-1/2"]
[ECO "C18"]
[WhiteElo "2514"]
[BlackElo "2455"]
[Annotator "ChessBase"]
[PlyCount "82"]
[EventDate "2018.11.10"]
[EventType "team-tourn"]
[EventCountry "SVK"]
[SourceTitle "playchess.com"]
[Source "ChessBase"]
[SourceQuality "1"]
[WhiteTeam "Snina"]
[BlackTeam "Prakovce"]
[TimeControl "40/5400+30:1800+30"]

1. e4 {[%emt 0:00:00]} e6 {[%emt 0:00:00]} 2. d4 {[%emt 0:00:00]} d5 {[%emt 0:00:00]} 3. Nc3 {[%emt 0:00:00]} Bb4 {[%emt 0:00:12]} 4. e5 {[%emt 0:01:13]} Ne7 {[%emt 0:00:14]} 5. a3 {[%emt 0:00:19]} Bxc3+ {[%emt 0:00:06]} 6. bxc3 {[%emt 0:00:05]} c5 {[%emt 0:00:08]} 7. Qg4 {[%emt 0:00:51]} Kf8 {[%emt 0:00:20]} 8. Nf3 {[%emt 0:07:17]} Qc7 {[%emt 0:01:11]} 9. Bd3 cxd4 {[%emt 0:01:37]} 10. O-O {[%emt 0:01:36]} dxc3 {[%emt 0:04:07]} 11. a4 {[%emt 0:01:41]} Nbc6 {[%emt 0:02:36]} 12. Re1 {[%emt 0:00:18]} Kg8 {[%emt 0:15:15]} 13. Ba3 {[%emt 0:14:08]} Ng6 {[%emt 0:06:31]} 14. Bd6 {[%emt 0:06:19]} Qd8 {[%emt 0:00:28]} 15. h4 {[%emt 0:04:30]} h5 {[%emt 0:00:28]} 16. Qg3 {[%emt 0:00:21]} Nce7 {[%emt 0:00:07]} 17. Ng5 {[%emt 0:05:09]} Bd7 {[%emt 0:05:09]} 18. Re3 {[%emt 0:21:02]} Rc8 {[%emt 0:13:26]} 19. Rb1 {[%emt 0:06:57]} b6 {[%emt 0:11:17]} 20. Nxf7 {[%emt 0:00:11]} Kxf7 {[%emt 0:00:27]} 21. Bxg6+ {[%emt 0:00:05]} Nxg6 {[%emt 0:00:08]} 22. Rf3+ {[%emt 0:00:03]} Kg8 {[%emt 0:00:10]} 23. Qxg6 {[%emt 0:00:04]} Rh6 {[%emt 0:00:44]} 24. Qg3 {[%emt 0:09:04]} Bxa4 {[%emt 0:09:31]} 25. Rf8+ {[%emt 0:01:02]} Qxf8 {[%emt 0:00:06]} 26. Bxf8 Rxf8 {[%emt 0:00:09]} 27. Qxc3 {[%emt 0:00:17]} Rf4 {[%emt 0:00:04]} 28. Qc7 {[%emt 0:02:09]} Rg6 {[%emt 0:02:46]} 29. Qxa7 {[%emt 0:02:56]} b5 {[%emt 0:07:27]} 30. Qe7 {[%emt 0:00:24]} Rc4 {[%emt 0:02:21]} 31. Rb4 {[%emt 0:00:30]} Bxc2 {[%emt 0:04:59]} 32. Qe8+ {[%emt 0:01:49]} Kh7 {[%emt 0:00:02]} 33. Qxb5 {[%emt 0:00:08]} Be4 {[%emt 0:05:14]} 34. Rxc4 {[%emt 0:00:19]} dxc4 {[%emt 0:00:07]} 35. Qxc4 {[%emt 0:02:55]} Bxg2 {[%emt 0:00:23]} 36. Kh2 {[%emt 0:00:22]} Bf3 {[%emt 0:02:09]} 37. Qd3 {[%emt 0:04:40]} Bg4 {[%emt 0:00:09]} 38. f3 {[%emt 0:01:32]} Bf5 {[%emt 0:00:10]} 39. Qd8 {[%emt 0:01:56]} Bc2 {[%emt 0:03:25]} 40. Qd2 {[%emt 0:01:58]} Bf5 {[%emt 0:01:46]} 41. Qd1 {[%emt 0:32:23]} Kg8 {[%emt 0:32:36]} 1/2-1/2

[Event "SVK ECo-C Extraliga 2018-19"]
[Site "Slovakia"]
[Date "2019.04.12"]
[Round "9.4"]
[White "Bokros, Albert"]
[Black "Ftacnik, Lubomir"]
[Result "1/2-1/2"]
[ECO "B90"]
[WhiteElo "2466"]
[BlackElo "2516"]
[Annotator "ChessBase"]
[PlyCount "62"]
[EventDate "2018.11.10"]
[EventType "team-tourn"]
[EventCountry "SVK"]
[SourceTitle "playchess.com"]
[Source "ChessBase"]
[SourceQuality "1"]
[WhiteTeam "Streda"]
[BlackTeam "Slovan"]
[TimeControl "40/5400+30:1800+30"]

1. e4 {[%emt 0:00:00]} c5 {[%emt 0:00:00]} 2. Nf3 {[%emt 0:00:00]} d6 {[%emt 0:00:00]} 3. d4 {[%emt 0:00:08]} cxd4 {[%emt 0:00:18]} 4. Nxd4 {[%emt 0:00:10]} Nf6 {[%emt 0:00:10]} 5. Nc3 {[%emt 0:00:06]} a6 {[%emt 0:00:18]} 6. Be3 {[%emt 0:01:07]} e5 {[%emt 0:00:35]} 7. Nf3 {[%emt 0:02:57]} Be7 {[%emt 0:00:55]} 8. Bc4 {[%emt 0:01:10]} O-O {[%emt 0:04:14]} 9. O-O {[%emt 0:02:45]} Be6 {[%emt 0:03:04]} 10. Bb3 {[%emt 0:02:52]} b5 {[%emt 0:04:49]} 11. Nd5 {[%emt 0:04:47]} Nbd7 {[%emt 0:03:23]} 12. Nxf6+ {[%emt 0:04:59]} Nxf6 {[%emt 0:00:29]} 13. Qd3 {[%emt 0:01:18]} Bxb3 {[%emt 0:11:24]} 14. axb3 {[%emt 0:01:15]} d5 {[%emt 0:00:23]} 15. Nxe5 {[%emt 0:04:57]} Qc7 {[%emt 0:03:15]} 16. Bd4 {[%emt 0:03:41]} dxe4 {[%emt 0:09:03]} 17. Qc3 {[%emt 0:02:21]} Rfc8 {[%emt 0:11:49]} 18. Qxc7 {[%emt 0:01:21]} Rxc7 {[%emt 0:00:02]} 19. c3 {[%emt 0:01:34]} Nd5 {[%emt 0:07:14]} 20. Rfe1 {[%emt 0:05:52]} f6 {[%emt 0:02:41]} 21. Ng4 {[%emt 0:00:46]} f5 {[%emt 0:03:01]} 22. Ne3 {[%emt 0:01:29]} Nxe3 {[%emt 0:00:07]} 23. Rxe3 {[%emt 0:00:19]} Rc6 {[%emt 0:05:43]} 24. f3 {[%emt 0:01:31]} Bg5 {[%emt 0:00:42]} 25. Re2 {[%emt 0:00:22]} exf3 {[%emt 0:01:56]} 26. gxf3 {[%emt 0:00:07]} Rd8 {[%emt 0:03:49]} 27. b4 {[%emt 0:02:41]} Kf7 {[%emt 0:07:23]} 28. Re5 {[%emt 0:02:54]} g6 {[%emt 0:01:53]} 29. Rc5 {[%emt 0:00:55]} Rdd6 {[%emt 0:00:30]} 30. Re1 {[%emt 0:01:49]} Bf6 {[%emt 0:04:22]} 31. Bxf6 {[%emt 0:03:10]} Kxf6 {[%emt 0:00:14]} 1/2-1/2

[Event "SVK ECo-C Extraliga 2018-19"]
[Site "Slovakia"]
[Date "2019.04.12"]
[Round "9.4"]
[White "Likavsky, Tomas"]
[Black "Molnar, Erno"]
[Result "1/2-1/2"]
[ECO "D90"]
[WhiteElo "2425"]
[BlackElo "2194"]
[Annotator "ChessBase"]
[PlyCount "44"]
[EventDate "2018.11.10"]
[EventType "team-tourn"]
[EventCountry "SVK"]
[SourceTitle "playchess.com"]
[Source "ChessBase"]
[SourceQuality "1"]
[WhiteTeam "Podhajska"]
[BlackTeam "Komarno"]
[TimeControl "40/5400+30:1800+30"]

1. d4 {[%emt 0:00:00]} Nf6 {[%emt 0:00:00]} 2. c4 {[%emt 0:00:00]} g6 {[%emt 0:00:00]} 3. Nc3 {[%emt 0:00:06]} d5 {[%emt 0:00:00]} 4. Nf3 {[%emt 0:00:29]} Bg7 {[%emt 0:00:01]} 5. Qa4+ {[%emt 0:00:11]} c6 {[%emt 0:17:27]} 6. cxd5 {[%emt 0:01:06]} Nxd5 {[%emt 0:04:05]} 7. e4 {[%emt 0:00:11]} Nxc3 {[%emt 0:03:04]} 8. bxc3 {[%emt 0:00:07]} O-O {[%emt 0:01:20]} 9. Be3 {[%emt 0:00:50]} Nd7 {[%emt 0:03:31]} 10. Rd1 {[%emt 0:21:20]} e5 {[%emt 0:03:59]} 11. Bd3 {[%emt 0:08:03]} Qc7 {[%emt 0:15:10]} 12. O-O {[%emt 0:02:16]} c5 {[%emt 0:04:21]} 13. d5 {[%emt 0:18:20]} Nf6 {[%emt 0:06:11]} 14. h3 {[%emt 0:04:30]} Ne8 {[%emt 0:02:45]} 15. c4 {[%emt 0:03:05]} Nd6 {[%emt 0:02:03]} 16. Nd2 {[%emt 0:00:59]} b6 {[%emt 0:06:34]} 17. Qc2 {[%emt 0:01:20]} f5 {[%emt 0:04:50]} 18. f3 {[%emt 0:00:09]} f4 {[%emt 0:05:11]} 19. Bf2 {[%emt 0:00:06]} g5 {[%emt 0:00:23]} 20. Rb1 {[%emt 0:01:42]} h5 {[%emt 0:00:31]} 21. Be2 {[%emt 0:05:24]} Bf6 {[%emt 0:01:15]} 22. Rb3 {[%emt 0:01:32]} Kf7 {[%emt 0:01:01]} 1/2-1/2

[Event "SVK ECo-C Extraliga 2018-19"]
[Site "Slovakia"]
[Date "2019.04.12"]
[Round "9.4"]
[White "Berezjuk, Sergej"]
[Black "Rigo, Zsolt"]
[Result "1/2-1/2"]
[ECO "D05"]
[WhiteElo "2398"]
[BlackElo "2396"]
[Annotator "NA"]
[PlyCount "31"]
[EventDate "2018.11.10"]
[EventType "team-tourn"]
[EventCountry "SVK"]
[SourceTitle "playchess.com"]
[Source "ChessBase"]
[SourceQuality "1"]
[WhiteTeam "Osuske"]
[BlackTeam "Modra"]
[TimeControl "40/5400+30:1800+30"]

1. d4 {[%emt 0:00:00]} Nf6 {[%emt 0:00:00]} 2. Nf3 {[%emt 0:00:00]} e6 {[%emt 0:01:01]} 3. e3 {[%emt 0:00:00]} b6 {[%emt 0:02:47]} 4. Bd3 {[%emt 0:00:06]} Bb7 {[%emt 0:00:22]} 5. O-O {[%emt 0:00:29]} d5 {[%emt 0:03:43]} 6. Nbd2 {[%emt 0:03:59]} Nbd7 {[%emt 0:10:49]} 7. b3 {[%emt 0:12:20]} Bd6 {[%emt 0:01:23]} 8. Bb2 {[%emt 0:00:09]} Ne4 {[%emt 0:02:37]} 9. Ne5 {[%emt 0:05:02]} Nxd2 {[%emt 0:12:12]} 10. Qxd2 {[%emt 0:01:24]} O-O {[%emt 0:00:25]} 11. Qe2 {[%emt 0:10:40]} Nf6 {[%emt 0:11:26]} 12. f4 {[%emt 0:06:15]} Ne4 {[%emt 0:01:54]} 13. Rad1 {[%emt 0:09:26]} Qe7 {[%emt 0:03:58]} 14. c4 {[%emt 0:03:11]} Rad8 {[%emt 0:25:48]} 15. Qc2 {[%emt 0:24:34]} c5 {[%emt 0:01:34]} 16. cxd5 {[%emt 0:05:02]} 1/2-1/2

[Event "SVK ECo-C Extraliga 2018-19"]
[Site "Slovakia"]
[Date "2019.04.12"]
[Round "9.4"]
[White "Hausner, Ivan"]
[Black "Jurcik, Marian"]
[Result "0-1"]
[ECO "A28"]
[WhiteElo "2349"]
[BlackElo "2494"]
[Annotator "ChessBase"]
[PlyCount "104"]
[EventDate "2018.11.10"]
[EventType "team-tourn"]
[EventCountry "SVK"]
[SourceTitle "playchess.com"]
[Source "ChessBase"]
[SourceQuality "1"]
[WhiteTeam "Liptovska"]
[BlackTeam "Zilina"]
[TimeControl "40/5400+30:1800+30"]

1. c4 {[%emt 0:00:00]} e5 {[%emt 0:00:00]} 2. Nc3 {[%emt 0:00:00]} Nf6 {[%emt 0:00:00]} 3. Nf3 {[%emt 0:01:08]} Nc6 {[%emt 0:00:01]} 4. d4 {[%emt 0:00:05]} exd4 {[%emt 0:00:18]} 5. Nxd4 {[%emt 0:00:03]} Bb4 {[%emt 0:01:02]} 6. Bg5 {[%emt 0:00:05]} h6 {[%emt 0:01:36]} 7. Bh4 {[%emt 0:00:06]} Bxc3+ {[%emt 0:00:29]} 8. bxc3 {[%emt 0:00:08]} O-O {[%emt 0:00:13]} 9. Nxc6 {[%emt 0:03:07]} dxc6 {[%emt 0:07:13]} 10. Qxd8 {[%emt 0:00:12]} Rxd8 {[%emt 0:00:02]} 11. Bxf6 {[%emt 0:00:11]} gxf6 {[%emt 0:00:05]} 12. e3 {[%emt 0:00:06]} Be6 {[%emt 0:01:25]} 13. Rd1 {[%emt 0:02:53]} Kf8 {[%emt 0:16:20]} 14. h4 {[%emt 0:03:37]} c5 {[%emt 0:08:41]} 15. h5 {[%emt 0:03:38]} Rxd1+ {[%emt 0:03:03]} 16. Kxd1 {[%emt 0:00:06]} Rd8+ {[%emt 0:00:05]} 17. Kc1 {[%emt 0:00:08]} Rd6 {[%emt 0:00:04]} 18. Rh4 {[%emt 0:00:38]} Ra6 {[%emt 0:00:23]} 19. Kb2 {[%emt 0:00:13]} Rb6+ {[%emt 0:00:16]} 20. Kc2 {[%emt 0:01:06]} Ra6 {[%emt 0:00:38]} 21. Kb2 {[%emt 0:00:10]} Rb6+ {[%emt 0:00:12]} 22. Kc2 {[%emt 0:00:07]} Bf5+ {[%emt 0:00:19]} 23. e4 {[%emt 0:11:12]} Be6 {[%emt 0:00:14]} 24. a3 {[%emt 0:17:52]} Bd7 {[%emt 0:06:01]} 25. Rf4 {[%emt 0:02:34]} Ke7 {[%emt 0:00:35]} 26. Be2 {[%emt 0:00:30]} Ba4+ {[%emt 0:06:19]} 27. Kd3 {[%emt 0:01:30]} Rb3 {[%emt 0:03:27]} 28. Rg4 {[%emt 0:00:16]} Rxa3 {[%emt 0:01:48]} 29. Rg8 {[%emt 0:00:08]} b5 {[%emt 0:15:34]} 30. cxb5 {[%emt 0:05:42]} Bxb5+ {[%emt 0:00:04]} 31. Ke3 {[%emt 0:00:07]} a6 {[%emt 0:00:43]} 32. Rc8 {[%emt 0:04:53]} c6 {[%emt 0:06:25]} 33. Rc7+ {[%emt 0:04:30]} Kf8 {[%emt 0:02:10]} 34. Bxb5 {[%emt 0:03:35]} axb5 {[%emt 0:01:24]} 35. Rxc6 {[%emt 0:03:26]} Rxc3+ {[%emt 0:00:19]} 36. Kd2 {[%emt 0:00:14]} b4 {[%emt 0:00:46]} 37. Rxf6 {[%emt 0:00:41]} Kg7 {[%emt 0:00:41]} 38. Rb6 {[%emt 0:00:09]} Rb3 {[%emt 0:03:06]} 39. Rc6 {[%emt 0:03:15]} Rb2+ {[%emt 0:00:34]} 40. Ke3 {[%emt 0:00:08]} Rc2 {[%emt 0:01:33]} 41. Rb6 {[%emt 0:30:50]} Rc1 {[%emt 0:37:39]} 42. Rb5 {[%emt 0:04:10]} Kf6 {[%emt 0:00:32]} 43. f4 {[%emt 0:00:30]} Ke7 {[%emt 0:06:44]} 44. g4 {[%emt 0:01:00]} Rc3+ {[%emt 0:00:00]} 45. Kd2 {[%emt 0:00:00]} f6 {[%emt 0:00:00]} 46. Rb7+ {[%emt 0:00:00]} Kd6 {[%emt 0:00:00]} 47. Rb6+ {[%emt 0:00:00]} Kc7 {[%emt 0:00:00]} 48. Rxf6 {[%emt 0:00:00]} c4 {[%emt 0:00:00]} 49. g5 {[%emt 0:00:00]} Rd3+ {[%emt 0:00:00]} 50. Ke2 {[%emt 0:00:00]} b3 {[%emt 0:00:00]} 51. Rf7+ {[%emt 0:00:00]} Kc6 {[%emt 0:00:00]} 52. Rf8 {[%emt 0:00:00]} b2 {[%emt 0:00:00]} 0-1

[Event "SVK ECo-C Extraliga 2018-19"]
[Site "Slovakia"]
[Date "2019.04.12"]
[Round "9.5"]
[White "Stohl, Igor"]
[Black "Karas, Marek"]
[Result "1/2-1/2"]
[ECO "D11"]
[WhiteElo "2489"]
[BlackElo "2246"]
[Annotator "ChessBase"]
[PlyCount "54"]
[EventDate "2018.11.10"]
[EventType "team-tourn"]
[EventCountry "SVK"]
[SourceTitle "playchess.com"]
[Source "ChessBase"]
[SourceQuality "1"]
[WhiteTeam "Modra"]
[BlackTeam "Osuske"]
[TimeControl "40/5400+30:1800+30"]

1. Nf3 {[%emt 0:00:00]} d5 {[%emt 0:00:00]} 2. c4 {[%emt 0:00:03]} c6 {[%emt 0:00:04]} 3. e3 {[%emt 0:00:51]} Nf6 {[%emt 0:00:13]} 4. d4 {[%emt 0:00:17]} a6 {[%emt 0:00:17]} 5. Nbd2 {[%emt 0:00:34]} e6 {[%emt 0:05:50]} 6. b3 {[%emt 0:05:48]} c5 {[%emt 0:02:28]} 7. Bb2 {[%emt 0:01:27]} Nc6 {[%emt 0:03:41]} 8. Bd3 {[%emt 0:05:11]} Be7 {[%emt 0:05:20]} 9. O-O {[%emt 0:07:21]} O-O {[%emt 0:02:00]} 10. Rc1 {[%emt 0:08:06]} dxc4 {[%emt 0:10:37]} 11. Nxc4 {[%emt 0:01:31]} cxd4 {[%emt 0:03:51]} 12. Nxd4 {[%emt 0:01:00]} Nxd4 {[%emt 0:00:34]} 13. Bxd4 {[%emt 0:01:57]} b5 {[%emt 0:02:08]} 14. Ne5 {[%emt 0:18:02]} Bb7 {[%emt 0:00:35]} 15. Nc6 {[%emt 0:02:27]} Bxc6 {[%emt 0:00:55]} 16. Rxc6 {[%emt 0:00:57]} Nd5 {[%emt 0:13:08]} 17. Qb1 {[%emt 0:14:57]} h6 {[%emt 0:03:42]} 18. Bh7+ {[%emt 0:02:19]} Kh8 {[%emt 0:00:03]} 19. Be4 {[%emt 0:00:12]} Nb4 {[%emt 0:08:40]} 20. Rcc1 {[%emt 0:08:29]} Rc8 {[%emt 0:02:15]} 21. Qb2 {[%emt 0:03:35]} f6 {[%emt 0:02:15]} 22. Rcd1 {[%emt 0:08:13]} Qc7 {[%emt 0:01:34]} 23. a3 {[%emt 0:01:29]} Nd5 {[%emt 0:05:34]} 24. Rc1 {[%emt 0:00:27]} Qd6 {[%emt 0:01:20]} 25. b4 {[%emt 0:00:42]} Qd7 {[%emt 0:02:13]} 26. Rcd1 {[%emt 0:01:18]} Qc7 {[%emt 0:00:59]} 27. Rd2 {[%emt 0:02:38]} Nb6 {[%emt 0:01:19]} 1/2-1/2

[Event "SVK ECo-C Extraliga 2018-19"]
[Site "Slovakia"]
[Date "2019.04.12"]
[Round "9.5"]
[White "Nayhebaver, Martin"]
[Black "Haring, Filip"]
[Result "1-0"]
[ECO "B24"]
[WhiteElo "2464"]
[BlackElo "2309"]
[Annotator "ChessBase"]
[PlyCount "91"]
[EventDate "2018.11.10"]
[EventType "team-tourn"]
[EventCountry "SVK"]
[SourceTitle "playchess.com"]
[Source "ChessBase"]
[SourceQuality "1"]
[WhiteTeam "Zilina"]
[BlackTeam "Liptovska"]
[TimeControl "40/5400+30:1800+30"]

1. e4 {[%emt 0:00:00]} c5 {[%emt 0:00:00]} 2. Nc3 {[%emt 0:00:12]} Nc6 {[%emt 0:00:17]} 3. Bb5 {[%emt 0:00:33]} Nd4 {[%emt 0:00:50]} 4. Nf3 {[%emt 0:00:27]} e6 {[%emt 0:01:49]} 5. Bc4 {[%emt 0:03:00]} a6 {[%emt 0:04:43]} 6. Nxd4 {[%emt 0:01:57]} cxd4 {[%emt 0:00:09]} 7. Ne2 {[%emt 0:00:07]} b5 {[%emt 0:06:38]} 8. Bb3 {[%emt 0:07:29]} Qb6 {[%emt 0:02:44]} 9. O-O {[%emt 0:03:31]} Ne7 {[%emt 0:03:49]} 10. d3 {[%emt 0:02:21]} Nc6 {[%emt 0:02:03]} 11. Ng3 {[%emt 0:01:31]} Bb7 {[%emt 0:03:11]} 12. Qg4 {[%emt 0:05:10]} Qc5 {[%emt 0:04:31]} 13. Nh5 {[%emt 0:10:17]} O-O-O {[%emt 0:06:14]} 14. c3 {[%emt 0:06:05]} f5 {[%emt 0:09:25]} 15. Qd1 {[%emt 0:13:48]} g6 {[%emt 0:08:04]} 16. Nf4 {[%emt 0:02:20]} Bg7 {[%emt 0:02:06]} 17. Bd2 {[%emt 0:06:00]} Qd6 {[%emt 0:02:43]} 18. Ne2 {[%emt 0:05:27]} fxe4 {[%emt 0:03:29]} 19. dxe4 {[%emt 0:00:07]} d3 {[%emt 0:02:17]} 20. Be3 {[%emt 0:07:22]} Ne5 {[%emt 0:08:38]} 21. f3 {[%emt 0:01:44]} h5 {[%emt 0:02:44]} 22. Nd4 {[%emt 0:04:02]} h4 {[%emt 0:12:09]} 23. h3 {[%emt 0:01:14]} g5 {[%emt 0:00:59]} 24. Bxg5 {[%emt 0:04:24]} Rdg8 {[%emt 0:00:17]} 25. Qd2 {[%emt 0:01:44]} Nf7 {[%emt 0:04:50]} 26. Be3 {[%emt 0:04:31]} Bh6 {[%emt 0:02:19]} 27. Rae1 {[%emt 0:01:36]} Ng5 {[%emt 0:00:51]} 28. Kh1 {[%emt 0:00:56]} Qg3 {[%emt 0:02:32]} 29. Bxg5 {[%emt 0:04:10]} Rxg5 {[%emt 0:01:22]} 30. f4 {[%emt 0:00:26]} Rg7 {[%emt 0:01:12]} 31. Rf3 {[%emt 0:02:24]} Qg6 {[%emt 0:00:08]} 32. Bd1 {[%emt 0:00:31]} Bxe4 {[%emt 0:00:48]} 33. Rf2 {[%emt 0:00:01]} Rhg8 {[%emt 0:00:59]} 34. Bf3 {[%emt 0:00:19]} Bxf3 {[%emt 0:01:03]} 35. Nxf3 {[%emt 0:00:02]} Qg3 {[%emt 0:00:08]} 36. Ne5 {[%emt 0:00:26]} Rf8 {[%emt 0:01:17]} 37. Nxd3 {[%emt 0:00:16]} Rf5 {[%emt 0:00:20]} 38. Rf3 {[%emt 0:00:42]} Qg6 {[%emt 0:00:15]} 39. Qe2 {[%emt 0:00:20]} Rd5 {[%emt 0:00:47]} 40. c4 {[%emt 0:00:25]} Rd4 {[%emt 0:00:42]} 41. cxb5 {[%emt 0:30:41]} axb5 {[%emt 0:05:23]} 42. Ne5 {[%emt 0:00:00]} Qf5 43. Qxb5 {[%emt 0:00:00]} Rxf4 {[%emt 0:03:07]} 44. Ra3 {[%emt 0:00:00]} Kd8 {[%emt 0:03:24]} 45. Ra8+ {[%emt 0:00:00]} Kc7 {[%emt 0:00:11]} 46. Qb8# 1-0